Cogmind - Beta 14 @@@ ROGUE MODE // 2024.08.27 @ 06:00:45 Player: Abkaal Result: Destroyed by H-66 Slayer with Gauss Rifle Performance ------------- Evolutions (5) 2500 Regions Visited (14) 2800 Robots Destroyed (192) 960 Value Destroyed (7105) 7105 Prototype IDs (40) 800 Alien Tech Used (0) 0 Bonus (4863) 4863 TOTAL SCORE: 19028 Bonus ------- High Alert Combat Kills 2008 Follower Combat Kills 1405 Entered Garrisons 200 Used RIF Installer 500 Entered DSFs 500 Aligned with FarCom 300 Friendly Fire -50 Cogmind --------- Core Integrity 0/1000 Matter 118/300 Energy 98/100 System Corruption 28% Temperature Cool (0) Movement Core (50) Location -5/Factory Parts ------- > --- POWER (2) -------- (None) > --- PROPULSION (4) --- (None) > --- UTILITY (7) ------ System Shield > --- WEAPON (4) ------- (None) > --- INVENTORY (5) ---- Improved Dynamic Insulation System Improved Arc Projector Heavy Machine Gun Smartbomb Launcher Peak State ------------ > --- POWER ------------ Reinforced Deuterium Engine Antimatter Reactor > --- PROPULSION ------- Heavy Treads Heavy Treads > --- UTILITY ---------- Improved Heat Sink High-capacity Storage Unit Advanced Targeting Computer Improved Medium Armor Plating Heart of Steel > --- WEAPON ----------- Heavy Machine Gun Enhanced Coil Gun Mass Driver Enhanced Gauss Cannon > --- INVENTORY -------- Armored Treads Armored Treads Armored Treads Medium Treads Medium Treads Recoil Nullifier Weapon Cycler Improved Medium Armor Plating Damper Plating Graphene Brace Minigun Flak Gun Heavy Machine Gun Slug Cannon Shock Bomb Launcher [Rating: 102] Favorites ----------- Power Deuterium Engine Engine Deuterium Engine Power Core Light Nuclear Core Reactor Antimatter Reactor Propulsion Armored Treads Treads Armored Treads Leg Flexi-carbon Leg Wheel Wheel Hover Unit Antigrav System Flight Unit Field Propulsion Drive Utility High-capacity Storage Unit Device Hardlight Generator Storage High-capacity Storage Unit Processor Improved Targeting Computer Hackware System Shield Protection Improved Medium Armor Plating Weapon Heavy Particle Cannon Energy Gun Medium Laser Energy Cannon Heavy Particle Cannon Ballistic Gun Flak Gun Ballistic Cannon AWS/Autocannon Launcher Shock Bomb Launcher Impact Weapon Hammer Slashing Weapon Ripper Build | -11 -10 -10 -10 -9 -8 -8 -7 -7 -7 -7 -7 -6 -6 -5 ------- Run | Yrd Mat Min Exi Min Mat Gar Fac Was Fac Low Low Fac DSF Fac Slots Evolved 10 | . . . . . 4 . 2 . . . . 2 . 2 Power 1 | . . . . . . . 1 . . . . . . . Propulsion 2 | . . . . . 2 . . . . . . . . . Utility 5 | . . . . . 1 . 1 . . . . 2 . 1 Weapon 2 | . . . . . 1 . . . . . . . . 1 Parts Attached 141 | 8 16 3 3 . 24 5 11 3 4 3 . 2 1 58 Power 21 | 1 4 1 . . 2 . 3 . 4 . . . . 6 Engine 13 | 1 4 1 . . 2 . 2 . 2 . . . . 1 Core 7 | . . . . . . . 1 . 2 . . . . 4 Reactor 1 | . . . . . . . . . . . . . . 1 Propulsion 40 | 2 6 . 2 . 10 . 2 3 . . . . . 15 Treads 24 | . . . 2 . 10 . 2 3 . . . . . 7 Leg 4 | . . . . . . . . . . . . . . 4 Wheel 9 | 2 6 . . . . . . . . . . . . 1 Hover 2 | . . . . . . . . . . . . . . 2 Flight 1 | . . . . . . . . . . . . . . 1 Utility 48 | 3 4 1 1 . 9 3 2 . . 2 . 2 1 20 Device 18 | 2 1 . . . 1 2 . . . . . 1 1 10 Storage 4 | 1 2 . 1 . . . . . . . . . . . Processor 4 | . . . . . 2 1 1 . . . . . . . Hackware 1 | . . . . . . . . . . . . . . 1 Protection 21 | . 1 1 . . 6 . 1 . . 2 . 1 . 9 Artifact . | . . . . . . . . . . . . . . . Weapon 32 | 2 2 1 . . 3 2 4 . . 1 . . . 17 Energy Gun 6 | . 1 . . . 1 . 1 . . . . . . 3 Energy Cannon 3 | . . . . . . 1 1 . . . . . . 1 Ballistic Gun 12 | 2 . . . . . . 2 . . . . . . 8 Ballistic Cannon 7 | . . . . . 2 1 . . . 1 . . . 3 Launcher 2 | . . . . . . . . . . . . . . 2 Special Weapon . | . . . . . . . . . . . . . . . Impact Weapon 1 | . 1 . . . . . . . . . . . . . Slashing Weapon 1 | . . 1 . . . . . . . . . . . . Piercing Weapon . | . . . . . . . . . . . . . . . Special Melee Weapon . | . . . . . . . . . . . . . . . Unidentified Prototypes 6 | . . . . . 2 . . . 1 . . . 1 2 Corrupted Parts 1 | . . . . . . . . . . . . . . 1 System Corruption 3 | . . . . . . . . . . . . . . 3 Parts Lost 53 | . 5 . . . . 1 1 . . . . . . 46 Power 9 | . 2 . . . . . . . . . . . . 7 Propulsion 14 | . 2 . . . . . . . . . . . . 12 Utility 16 | . . . . . . 1 . . . . . . . 15 Weapon 14 | . 1 . . . . . 1 . . . . . . 12 Highest Loss Streak 31 | . 2 . . . . 1 1 . . . . . . 31 To Critical Strikes 3 | . . . . . . . . . . . . . . 3 Average Slot Usage (%) 85 | . 98 99 100 100 80 88 94 89 83 84 84 86 81 68 Engine 10 | . 13 14 14 14 8 9 11 15 14 15 15 13 13 6 Treads 23 | . . . 23 28 36 36 30 19 15 15 15 13 13 11 Wheel 3 | . 27 28 4 . . . . . . . . . . . Device 5 | . 13 . . . . 5 7 7 7 7 7 13 13 9 Storage 8 | . 14 14 14 14 9 9 7 7 7 7 7 6 6 4 Processor 5 | . . . . . 8 8 7 7 7 7 7 6 6 3 Protection 6 | . . 13 14 14 8 3 7 7 7 7 7 13 8 4 Energy Cannon 2 | . . . . . . 7 7 7 7 4 . . . . Ballistic Gun 6 | . 17 . . . . . 3 15 15 15 15 13 13 10 Ballistic Cannon 5 | . . . . . 8 9 4 . . 2 7 6 6 7 Impact Weapon 2 | . 7 14 14 14 . . . . . . . . . . Slashing Weapon 1 | . . 4 14 14 . . . . . . . . . . Peak Build Rating 102 | 9 11 13 16 16 58 58 50 64 65 65 65 72 82 102 Average Rating 48 | 6 10 10 15 16 52 41 47 59 63 63 65 71 75 78 On Entrance 41 | . 9 9 13 16 16 58 39 50 64 64 65 65 72 82 Naked Turns 17 | . . . . . . . . . . . . . . 17 Heaviest Build 148 | 14 50 53 53 53 119 116 95 91 91 92 92 100 100 148 Greatest Support 140 | 26 26 20 40 40 80 80 80 140 140 140 140 140 140 140 Greatest Overweight (x) 7 | . 4 2 2 1 1 1 1 1 . . . . . 7 Average Overweight (x) . | . 1 2 1 1 1 . 1 . . . . . . . Largest Inventory Capacity 20 | 8 20 20 20 20 20 20 20 20 20 20 20 20 20 20 Average Capacity 19 | 7 19 20 20 20 20 20 20 20 20 20 20 20 20 18 Most Carried 20 | 8 20 20 20 20 20 20 20 20 20 20 20 19 20 20 Average Carried 18 | 5 16 19 19 20 19 19 19 19 20 19 20 18 18 16 Final Capacity 20 | 8 20 20 20 20 20 20 20 20 20 20 20 20 20 5 Final Carried 20 | 8 20 20 20 20 20 20 20 20 20 20 20 19 17 5 Class Distribution -------------------- 37% | Skirmisher 35% | Tank 20% | Mutant 3% | Scavenger-Tank Dominant Class ---------------- Mutant | -10/Materials Mutant | -10/Mines Mutant | -10/Exiles Mutant | -9/Mines Skirmisher | -8/Materials Skirmisher | -8/Garrison Tank | -7/Factory Tank | -7/Waste Tank | -7/Factory Tank | -7/Lower Caves Tank | -7/Lower Caves Scavenger-Tank | -6/Factory Scavenger-Tank | -6/DSF Tank | -5/Factory Resources | -11 -10 -10 -10 -9 -8 -8 -7 -7 -7 -7 -7 -6 -6 -5 ----------- Run | Yrd Mat Min Exi Min Mat Gar Fac Was Fac Low Low Fac DSF Fac Matter Collected 5209 | 299 386 30 . 40 227 341 371 33 72 127 . . 246 3037 Remotely . | . . . . . . . . . . . . . . . Salvage Created 6938 | 146 940 41 . 42 1123 690 1171 . 215 70 . . 121 2379 Parts 321 | 12 44 2 . 2 56 35 55 . 8 1 . . . 106 Haulers Intercepted 6 | . 2 . . . 2 . . . 1 . . . . 1 Recyclers Shooed 2 | . . . . . . . . . . . . . . 2 Parts Field Recycled . | . . . . . . . . . . . . . . . Retrieved Matter . | . . . . . . . . . . . . . . . Parts Self-Destructed 17 | . . . . . . . . . . 16 1 . . . Prevented . | . . . . . . . . . . . . . . . Kills | -11 -10 -10 -10 -9 -8 -8 -7 -7 -7 -7 -7 -6 -6 -5 ------- Run | Yrd Mat Min Exi Min Mat Gar Fac Was Fac Low Low Fac DSF Fac Combat Hostiles Destroyed 141 | . 19 3 . 1 32 27 11 . 3 2 . . 3 40 Melee 12 | . 8 2 . 1 . 1 . . . . . . . . Guns 35 | . 9 . . . . . 4 . 2 . . . 3 17 Cannons 86 | . . . . . 32 26 7 . 1 1 . . . 19 AOE 4 | . . . . . . . . . . . . . . 4 Classes Destroyed 19 | 2 5 . . . 5 2 2 . . . . . . 3 Worker 5 | . . . . . 2 . 1 . . . . . . 2 Builder 7 | . . . . . . . 1 . . . . . . 6 Tunneler 3 | 3 . . . . . . . . . . . . . . Hauler 6 | . 2 . . . 2 . . . 1 . . . . 1 Recycler 16 | 1 3 . . . 1 . 9 . . . . . . 2 Mechanic 2 | . . . . . . . . . . . . . . 2 Operator 4 | . 1 . . . 2 . 1 . . . . . . . Watcher 8 | . 1 . . . 5 . 2 . . . . . . . Swarmer 20 | . 6 3 . . 3 5 3 . . . . . . . Cutter 3 | . . . . . . 3 . . . . . . . . Grunt 69 | . 13 . . 1 14 12 3 . 2 1 . . 2 21 Brawler 3 | . . . . . . 1 . . . . . . . 2 Duelist 6 | . . . . . . . . . . . . . . 6 Protector 1 | . . . . . . . . . . . . . . 1 Sentry 16 | . . . . . 7 4 3 . 1 1 . . . . Specialist 3 | . . . . . 2 . . . . . . . 1 . Hunter 12 | . . . . . 5 2 . . . . . . . 5 Programmer 7 | . . . . . . . 2 . . . . . . 5 Heavy 1 | . . . . . 1 . . . . . . . . . Best Kill Streak 20 | 4 5 2 . 1 4 6 4 . 2 2 . . 3 20 Combat Bots Only 12 | . 3 2 . 1 4 6 3 . 1 2 . . 3 12 Max Kills in Single Turn 2 | 1 1 1 . 1 1 1 2 . 1 1 . . 1 2 Gunslinging . | . . . . . . . . . . . . . . . Exploded 2 | . . . . . . . . . . . . . . 2 Melee 1 | . 1 1 . 1 . 1 . . . . . . . . Uniques/NPCs Destroyed . | . . . . . . . . . . . . . . . Combat | -11 -10 -10 -10 -9 -8 -8 -7 -7 -7 -7 -7 -6 -6 -5 -------- Run | Yrd Mat Min Exi Min Mat Gar Fac Was Fac Low Low Fac DSF Fac Hostile Shots Fired 950 | . 109 9 . 6 96 117 66 . 26 2 . . 11 508 Missed 272 | . 34 3 . 1 34 36 20 . 9 . . . 4 131 Damage Taken 10841 | 7 797 45 . 55 824 1113 375 . 110 65 . . 98 7352 Core 1393 | 7 200 6 . . 35 65 68 . . . . . 11 1001 Absorbed by Shields 424 | . . . . . . 20 144 . 68 12 . . 8 172 Reduced by Siege Mode 65 | . . . . . . . . . . . . . . 65 Ignored by Resistances 477 | . . . . . . . . . . . . . . 477 Regen/Repaired (Parts) 793 | . 4 . . . 156 . . 159 . . . . . 474 Core Remaining (%) 76 | 97 . . . 14 . 81 . . . . 90 . 98 . Volleys Fired 289 | 6 64 . . . . 37 39 . 8 5 . . 9 121 Largest 4 | 2 2 . . . . 2 3 . 3 3 . . 3 4 Hottest 174 | 40 40 . . . . 135 164 . 131 131 . . 104 174 Shots Fired 825 | 12 118 . . . 93 87 90 . 24 15 . . 28 358 Gun 422 | 12 118 . . . . . 28 . 16 10 . . 18 220 Cannon 395 | . . . . . 93 87 62 . 8 5 . . 10 130 Launcher 8 | . . . . . . . . . . . . . . 8 Special . | . . . . . . . . . . . . . . . Kinetic 713 | 12 118 . . . 93 59 40 . 16 10 . . 28 337 Thermal 104 | . . . . . . 28 50 . 8 5 . . . 13 Explosive 3 | . . . . . . . . . . . . . . 3 Electromagnetic 5 | . . . . . . . . . . . . . . 5 Robot Hit Streak 30 | 3 13 . . . 13 16 5 . 8 6 . . 9 30 Robot Miss Streak 7 | 2 5 . . . 2 4 6 . 3 2 . . 7 6 Penetration Max 2 | . . . . . . . . . . . . . . 2 Secondary Targets 2 | . 1 . . . . . . . . . . . . 1 Max Gunslinging Chain 1 | . 1 . . . . . . . . . . . . 1 Autonomous 116 | . . . . . 93 23 . . . . . . . . Shots Hit Robots 595 | 6 98 4 . 1 79 56 50 . 19 10 . . 17 255 Core Hits 331 | 5 31 1 . 1 35 23 37 . 15 3 . . 12 168 Critical Kills 4 | . 2 . . . . . . . . . . . . 2 Critical Parts Destroyed 17 | . 6 1 . . . . . . . . . . . 10 Critical Strikes 53 | . 8 1 . . 11 6 5 . . . . . . 22 Burn 3 | . . . . . . . 2 . . . . . . 1 Destroy 12 | . . . . . . . . . . . . . . 12 Blast 29 | . . . . . 11 6 3 . . . . . . 9 Smash 9 | . 8 1 . . . . . . . . . . . . Melee Attacks 50 | . 43 5 . 2 . . . . . . . . . . Impact 48 | . 43 5 . . . . . . . . . . . . Slashing 2 | . . . . 2 . . . . . . . . . . Piercing . | . . . . . . . . . . . . . . . Sneak Attacks 4 | . 3 1 . . . . . . . . . . . . Combat Hostiles 1 | . . 1 . . . . . . . . . . . . Follow-up Attacks . | . . . . . . . . . . . . . . . Damage Inflicted 22459 | 84 1590 96 . 43 6520 3123 1775 . 368 240 . . 359 8261 Guns 6023 | 69 762 . . . . . 283 . 216 125 . . 263 4305 Cannons 13928 | . . . . . 6394 3098 1262 . 152 102 . . 96 2824 Explosions 1362 | . . . . . . . 230 . . . . . . 1132 Melee 967 | . 828 96 . 43 . . . . . . . . . . Ramming 179 | 15 . . . . 126 25 . . . 13 . . . . Kinetic 18435 | 69 762 . . . 6394 2840 784 . 216 125 . . 359 6886 Thermal 1685 | . . . . . . 258 930 . 152 102 . . . 243 Explosive 720 | . . . . . . . . . . . . . . 720 Electromagnetic 473 | . . . . . . . 61 . . . . . . 412 Impact 924 | . 828 96 . . . . . . . . . . . . Slashing 43 | . . . . 43 . . . . . . . . . . Piercing . | . . . . . . . . . . . . . . . Highest Corruption 28 | . . . . . . . . . 2 2 2 . 1 28 Average Corruption 6 | . . . . . . . . . 2 2 2 . 1 11 Corruption Purged . | . . . . . . . . . . . . . . . Corruption Blocked . | . . . . . . . . . . . . . . . Effects 61 | . . . . . . . . . 1 10 1 . 2 47 Message Errors 13 | . . . . . . . . . . 3 . . . 10 Matter Fused 11 | . . . . . . . . . . 2 . . . 9 Heat Flow Errors 10 | . . . . . . . . . . 3 . . . 7 Energy Discharges 5 | . . . . . . . . . . 1 . . . 4 Parts Rejected 1 | . . . . . . . . . . . . . . 1 Data Loss (minor) 7 | . . . . . . . . . 1 1 1 . . 4 Data Loss (major) 2 | . . . . . . . . . . . . . . 2 Misfires 1 | . . . . . . . . . . . . . 1 . Alerts 2 | . . . . . . . . . . . . . 1 1 Misdirections 3 | . . . . . . . . . . . . . . 3 Weapon Failures 6 | . . . . . . . . . . . . . . 6 Overload Shots . | . . . . . . . . . . . . . . . Overflow Damage 1341 | . 205 16 . . 674 213 131 . . . . . . 102 Projectiles 977 | . . . . . 674 213 58 . . . . . . 32 Explosions 143 | . . . . . . . 73 . . . . . . 70 Melee 221 | . 205 16 . . . . . . . . . . . . Knockbacks 60 | . 2 . . . 20 10 3 . . . . . 1 24 Impact 2 | . 2 . . . . . . . . . . . . . Kinetic 55 | . . . . . 18 10 3 . . . . . 1 23 Secondary 3 | . . . . . 2 . . . . . . . . 1 Self-Inflicted Damage 275 | 7 . . . . . . 75 . . . . . . 193 Shots 8 | . . . . . . . 1 . . . . . . 7 Rammed 14 | 1 . . . . 11 1 . . . 1 . . . . Targets Rammed 18 | 1 . . . . 14 2 . . . 1 . . . . Kicked . | . . . . . . . . . . . . . . . Crushed 4 | . . . . . 3 1 . . . . . . . . Highest Temperature 734 | . 42 . . . 14 411 344 . 296 252 . . 122 734 Average Temperature 146 | . 13 . . . 10 178 105 . 141 107 . . 57 182 Received Heat Transfer 2395 | . 375 . . 30 324 354 13 . 65 7 . . 14 1213 Effects 53 | . . . . . . 7 4 . . . . . . 42 Shutdowns 9 | . . . . . . . 1 . . . . . . 8 Energy Bleed 7 | . . . . . . 1 . . . . . . . 6 Interference 12 | . . . . . . 4 3 . . . . . . 5 Matter Decay 5 | . . . . . . . . . . . . . . 5 Short Circuit 5 | . . . . . . 2 . . . . . . . 3 Damage (minor) 2 | . . . . . . . . . . . . . . 2 Damage (major) 13 | . . . . . . . . . . . . . . 13 Siege Activations 7 | . . . . . . . . . . 1 . . 1 5 Total Turns 211 | . . . . . . . . . . 5 . . 8 198 Longest Duration 91 | . . . . . . . . . . 5 . . 8 91 Robots Corrupted 6 | . 3 1 . . 1 . . . . . . . . 1 Combat Hostiles 3 | . 2 1 . . . . . . . . . . . . Parts Fried 12 | . 8 2 . . 1 . . . . . . . . 1 Impact Corruptions 17 | . 13 2 . . 1 . . . . . . . . 1 Robots Melted 1 | . . . . . . . . . . 1 . . . . Combat Hostiles 1 | . . . . . . . . . . 1 . . . . Parts Melted 5 | . . . . . . . 1 . . . . . . 4 Heat Transferred 2600 | . . . . . . 350 1395 . 222 148 . . . 485 Parts Sabotaged . | . . . . . . . . . . . . . . . Parts Stolen . | . . . . . . . . . . . . . . . Parts Stripped . | . . . . . . . . . . . . . . . Power Chain Reactions 1 | . . . . . . . 1 . . . . . . . Alert | -11 -10 -10 -10 -9 -8 -8 -7 -7 -7 -7 -7 -6 -6 -5 ------- Run | Yrd Mat Min Exi Min Mat Gar Fac Was Fac Low Low Fac DSF Fac Peak Influence 1644 | 20 297 154 . 20 506 1170 698 172 533 . . 315 585 1644 Initial 613 | . 13 84 . . 7 328 613 172 . . . 315 220 306 Average 440 | 8 176 127 . 14 161 810 475 123 303 . . 315 429 1066 Maximum Alert Level 5 | . 1 . . . 2 4 2 . 2 . . 1 2 5 Low Security (%) 38 | 100 62 100 . 100 69 . . 100 20 . . . . . Level 1 17 | . 37 . . . 16 11 21 . 45 . . 100 34 5 Level 2 23 | . . . . . 14 16 78 . 33 . . . 65 22 Level 3 11 | . . . . . . 69 . . . . . . . 22 Level 4 8 | . . . . . . 2 . . . . . . . 47 Level 5 . | . . . . . . . . . . . . . . 1 High Security . | . . . . . . . . . . . . . . . Max Security . | . . . . . . . . . . . . . . . Sterilizations 1 | . . . . . . . . . . . . . 1 . Squads Dispatched 40 | . 6 . . . 6 . 6 . 3 . . . 2 17 Investigation 18 | . 4 . . . 4 . 3 . 2 . . . . 5 Extermination 4 | . . . . . . . 2 . . . . . . 2 Reinforcement 13 | . 2 . . . 2 . 1 . 1 . . . 2 5 Assault 5 | . . . . . . . . . . . . . . 5 Garrison . | . . . . . . . . . . . . . . . Intercept . | . . . . . . . . . . . . . . . Searches Triggered . | . . . . . . . . . . . . . . . Construction Impeded 3 | . . . . . . . . . . . . . . 3 Haulers Reinforced 1 | . . . . . . . . . . . . . . 1 Active Scanning Responses . | . . . . . . . . . . . . . . . Cargo Convoy Interrupts . | . . . . . . . . . . . . . . . Stealth | -11 -10 -10 -10 -9 -8 -8 -7 -7 -7 -7 -7 -6 -6 -5 --------- Run | Yrd Mat Min Exi Min Mat Gar Fac Was Fac Low Low Fac DSF Fac Distress Signals 2 | . . . . . . . 1 . . . . . . 1 Communications Jammed . | . . . . . . . . . . . . . . . Distress Signals . | . . . . . . . . . . . . . . . Times Spotted 230 | . 39 2 . 2 35 25 17 . 5 12 1 . 6 86 Peak Tracking Total 9 | . 5 2 . 2 4 4 2 . 2 7 1 . 3 9 Tactical Retreats 16 | . 3 . . . 2 1 . . . . . . . 10 Traps | -11 -10 -10 -10 -9 -8 -8 -7 -7 -7 -7 -7 -6 -6 -5 ------- Run | Yrd Mat Min Exi Min Mat Gar Fac Was Fac Low Low Fac DSF Fac Traps Triggered 3 | . . . . . 1 . 1 . . . . . . 1 Indirectly 1 | . . . . . . . . . . . . . . 1 Trap Hack Attempts . | . . . . . . . . . . . . . . . Triggered . | . . . . . . . . . . . . . . . Disarmed . | . . . . . . . . . . . . . . . Reprogrammed . | . . . . . . . . . . . . . . . Reused . | . . . . . . . . . . . . . . . Traps Extracted . | . . . . . . . . . . . . . . . Installed . | . . . . . . . . . . . . . . . Triggered . | . . . . . . . . . . . . . . . Machines | -11 -10 -10 -10 -9 -8 -8 -7 -7 -7 -7 -7 -6 -6 -5 ---------- Run | Yrd Mat Min Exi Min Mat Gar Fac Was Fac Low Low Fac DSF Fac Machines Disabled 20 | . 1 . . . . 2 2 . . 3 . . 1 11 Max in Single Turn 2 | . 1 . . . . 2 1 . . . . . . 2 Phase Generator 1 | . . . . . . 1 . . . . . . . . Machines Repaired . | . . . . . . . . . . . . . . . Machines Dismantled . | . . . . . . . . . . . . . . . Machines Sabotaged . | . . . . . . . . . . . . . . . Overloaded Fab Kills . | . . . . . . . . . . . . . . . Hacking | -11 -10 -10 -10 -9 -8 -8 -7 -7 -7 -7 -7 -6 -6 -5 --------- Run | Yrd Mat Min Exi Min Mat Gar Fac Was Fac Low Low Fac DSF Fac Machines Accessed 51 | . 5 1 4 . 15 4 8 . 3 2 . 1 . 8 Terminals 29 | . 4 . . . 9 4 6 . 1 . . 1 . 4 Fabricators 2 | . . . . . . . . . 1 . . . . 1 Repair Stations 5 | . 1 . . . 1 . 1 . . . . . . 2 Recycling Units 4 | . . . . . 2 . 1 . . . . . . 1 Scanalyzers 3 | . . . . . 2 . . . 1 . . . . . Garrison Access 1 | . . . . . 1 . . . . . . . . . Total Hacks 207 | . 20 1 41 . 67 5 21 . 20 2 . 4 . 26 Successful 129 | . 9 1 41 . 39 3 6 . 14 2 . 1 . 13 Failed 78 | . 11 . . . 28 2 15 . 6 . . 3 . 13 Catastrophic 12 | . 1 . . . 5 1 4 . . . . . . 1 Database Lockouts . | . . . . . . . . . . . . . . . Manual 51 | . 11 . 1 . 28 . 5 . 2 . . . . 4 Terminals 90 | . 17 . . . 37 5 13 . 4 . . 4 . 10 Fabricators 5 | . . . . . . . . . 3 . . . . 2 Repair Stations 27 | . 3 . . . 8 . 5 . . . . . . 11 Recycling Units 14 | . . . . . 8 . 3 . . . . . . 3 Scanalyzers 25 | . . . . . 12 . . . 13 . . . . . Garrison Access 2 | . . . . . 2 . . . . . . . . . Terminal Hacks 71 | . 5 1 41 . 14 3 2 . . 2 . 1 . 2 Record 41 | . . . 40 . . . . . . . . . . 1 Part Schematic 1 | . . . . . 1 . . . . . . . . . Robot Analysis 7 | . 2 . . . 5 . . . . . . . . . Prototype ID Bank 6 | . 2 . . . 3 . 1 . . . . . . . Open Door 4 | . . 1 . . . 1 . . . 2 . . . . Open DSF 2 | . . . . . . . . . . . . 1 . 1 Branch Access Points 1 | . . . . . 1 . . . . . . . . . Emergency Access Points 1 | . . . . . . 1 . . . . . . . . Scanalyzer Index 1 | . . . . . 1 . . . . . . . . . Unreport Threat 4 | . 1 . . . 2 . 1 . . . . . . . Hauler Manifests 1 | . . . . . 1 . . . . . . . . . Garrison Registry 1 | . . . . . . 1 . . . . . . . . Derelict Proto ID Bank 1 | . . . 1 . . . . . . . . . . . Fabricator Hacks 4 | . . . . . . . . . 2 . . . . 2 Load Schematic 2 | . . . . . . . . . 1 . . . . 1 Build 2 | . . . . . . . . . 1 . . . . 1 Repair Station Hacks 17 | . 2 . . . 5 . 3 . . . . . . 7 Scan Component 10 | . 1 . . . 3 . 2 . . . . . . 4 Repair 7 | . 1 . . . 2 . 1 . . . . . . 3 Recycling Unit Hacks 6 | . . . . . 3 . 1 . . . . . . 2 Report Inventory 4 | . . . . . 2 . 1 . . . . . . 1 Retrieve Matter 1 | . . . . . . . . . . . . . . 1 Retrieve Components 1 | . . . . . 1 . . . . . . . . . Scanalyzer 22 | . . . . . 11 . . . 11 . . . . . Insert Component 10 | . . . . . 5 . . . 5 . . . . . Analyze 12 | . . . . . 6 . . . 6 . . . . . Garrison Access Hacks 2 | . . . . . 2 . . . . . . . . . Unlock Access 1 | . . . . . 1 . . . . . . . . . Coupler Status 1 | . . . . . 1 . . . . . . . . . Unauthorized Hacks 7 | . 2 . . . 4 . . . 1 . . . . . Terminals 6 | . 2 . . . 3 . . . 1 . . . . . Botnet 6 | . 2 . . . 3 . . . 1 . . . . . Fabricators . | . . . . . . . . . . . . . . . Repair Stations . | . . . . . . . . . . . . . . . Recycling Units 1 | . . . . . 1 . . . . . . . . . Monitor 1 | . . . . . 1 . . . . . . . . . Scanalyzers . | . . . . . . . . . . . . . . . Garrison Access . | . . . . . . . . . . . . . . . Data Cores Recovered 2 | . . . . . 2 . . . . . . . . . Used . | . . . . . . . . . . . . . . . Hacking Detections 39 | . 5 . . . 14 2 8 . 3 . . 1 . 6 Full Trace Events 21 | . 5 . . . 6 . 3 . 2 . . . . 5 Feedback Events . | . . . . . . . . . . . . . . . Feedback Blocked . | . . . . . . . . . . . . . . . Robot Schematics Acquired . | . . . . . . . . . . . . . . . Robots Built . | . . . . . . . . . . . . . . . Authchips . | . . . . . . . . . . . . . . . Time . | . . . . . . . . . . . . . . . Total Robot Build Rating . | . . . . . . . . . . . . . . . Part Schematics Acquired 10 | . . . . . 6 . . . 4 . . . . . Parts Built 4 | . . . . . . . . . 2 . . . . 2 Authchips . | . . . . . . . . . . . . . . . Time 72 | . . . . . . . . . 36 . . . . 36 Total Part Build Rating 12 | . . . . . . . . . 6 . . . . 6 Parts Repaired 7 | . 1 . . . 2 . 1 . . . . . . 3 Time 399 | . 38 . . . 76 . 61 . . . . . . 224 Parts Recycled . | . . . . . . . . . . . . . . . Recycled Matter . | . . . . . . . . . . . . . . . Retrieved Matter 81 | . . . . . . . . . . . . . . 81 Retrieved Components 5 | . . . . . 5 . . . . . . . . . Parts Scanalyzed 9 | . . . . . 5 . . . 4 . . . . . Part Schematics Acquired 9 | . . . . . 5 . . . 4 . . . . . Parts Damaged 1 | . . . . . 1 . . . . . . . . . Bothacking | -11 -10 -10 -10 -9 -8 -8 -7 -7 -7 -7 -7 -6 -6 -5 ------------ Run | Yrd Mat Min Exi Min Mat Gar Fac Was Fac Low Low Fac DSF Fac Used RIF Installer 1 | . . . . . . 1 . . . . . . . . Robots Hacked . | . . . . . . . . . . . . . . . Non-combat . | . . . . . . . . . . . . . . . Combat . | . . . . . . . . . . . . . . . Robot Hacks Applied . | . . . . . . . . . . . . . . . Relay Couplers Released . | . . . . . . . . . . . . . . . Fabnet Peak Effective % . | . . . . . . . . . . . . . . . Robots Rewired . | . . . . . . . . . . . . . . . Allies Hacked . | . . . . . . . . . . . . . . . Hacks Repelled . | . . . . . . . . . . . . . . . Allies | -11 -10 -10 -10 -9 -8 -8 -7 -7 -7 -7 -7 -6 -6 -5 -------- Run | Yrd Mat Min Exi Min Mat Gar Fac Was Fac Low Low Fac DSF Fac Total Allies 24 | . . . . . . 1 . 20 3 . . . . . Largest Group 23 | . . . . . . 1 . 20 23 22 20 19 19 13 Highest-Rated Group 677 | . . . . . . 20 . 584 677 652 582 551 551 399 Highest-Rated Ally 35 | . . . . . . 20 . 35 35 35 35 35 35 35 Total Orders . | . . . . . . . . . . . . . . . Ally Attacks 287 | . . . . . . . . . 18 73 9 . 72 115 Total Damage 6497 | . . . . . . . . . 804 1769 189 . 1360 2375 Kills 43 | . . . . . . . . . 7 12 1 . 6 17 Allies Corrupted 2 | . . . . . . . . . . . . . 1 1 Allies Melted 1 | . . . . . . . . . . . . . . 1 Intel | -11 -10 -10 -10 -9 -8 -8 -7 -7 -7 -7 -7 -6 -6 -5 ------- Run | Yrd Mat Min Exi Min Mat Gar Fac Was Fac Low Low Fac DSF Fac Robot Analysis Total 7 | . 2 . . . 5 . . . . . . . . . Derelict Logs Recovered 1 | . . . . . . . . . . 1 . . . . Drone Launches 9 | . . . . . 7 . . . . . . . . 2 Drone Recoveries 1 | . . . . . . . . . . . . . . 1 Exploration | -11 -10 -10 -10 -9 -8 -8 -7 -7 -7 -7 -7 -6 -6 -5 ------------- Run | Yrd Mat Min Exi Min Mat Gar Fac Was Fac Low Low Fac DSF Fac Turns Passed 12573 | 108 1119 196 924 202 3292 1228 1598 557 307 903 76 105 142 1816 Spaces Moved 5445 | 71 630 128 457 82 1197 557 522 297 142 524 36 49 61 692 Core 109 | 1 . . . . . . . . . . . . . 108 Treads 4289 | . . . 321 82 1197 557 522 297 142 524 36 49 61 501 Legs 6 | . . . . . . . . . . . . . . 6 Wheels 998 | 70 630 128 136 . . . . . . . . . . 34 Hover 4 | . . . . . . . . . . . . . . 4 Flight 39 | . . . . . . . . . . . . . . 39 Fastest Speed 45 | 50 90 110 110 240 240 170 250 160 160 160 160 160 160 45 Average Speed 186 | 90 106 110 201 240 248 183 250 179 160 160 160 160 160 151 Slowest Speed 610 | 100 140 110 240 240 250 250 250 250 160 160 160 160 160 610 Overloaded Moves . | . . . . . . . . . . . . . . . Propulsion Burnouts . | . . . . . . . . . . . . . . . Robots Hopped 1 | . . . . . . . . . . . . . . 1 Cave-ins Triggered . | . . . . . . . . . . . . . . . Exploration Rate (%) 43 | 5 81 20 92 29 76 75 13 95 6 69 8 1 61 16 Regions Visited 14 Branch Regions 5 Pre-discovered Areas 1 | . . . 1 . . . . . . . . . . . Known Exits Taken 2 | . . . . . 1 . . . . . . 1 . . Unknown Exits Taken 8 | 1 1 1 1 1 . . . . 1 1 1 . . . Scrap Searched 13 | . . 1 . 1 . . . . . 11 . . . . Spaces Dug . | . . . . . . . . . . . . . . . Terrain Destroyed 215 | . . . . . 16 89 32 . . 1 . . 3 74 Melee . | . . . . . . . . . . . . . . . Projectile 99 | . . . . . 16 14 9 . . 1 . . 3 56 AOE 116 | . . . . . . 75 23 . . . . . . 18 Terrain Rammed . | . . . . . . . . . . . . . . . Walls Destroyed . | . . . . . . . . . . . . . . . Machines Disabled . | . . . . . . . . . . . . . . . Actions | -11 -10 -10 -10 -9 -8 -8 -7 -7 -7 -7 -7 -6 -6 -5 --------- Run | Yrd Mat Min Exi Min Mat Gar Fac Was Fac Low Low Fac DSF Fac Total 7241 | 100 907 176 464 85 1519 692 732 331 207 579 55 76 92 1226 Wait 997 | 6 96 33 . 2 201 73 132 6 46 37 20 25 17 303 Move 5430 | 70 629 127 456 81 1197 555 522 296 141 523 35 48 60 690 Hop 1 | . . . . . . . . . . . . . . 1 Pick Up 147 | 8 34 2 1 . 35 11 15 9 2 4 . 1 . 25 Fast Attach 49 | 8 3 2 . . 6 . . 3 3 1 . . . 23 Attach 62 | . 5 . 2 . 9 5 5 . . 1 . 2 1 32 Detach 21 | . 1 . . . 7 2 . . . . . . 3 8 Swap 30 | . 8 1 1 . 9 . 6 . 1 1 . . . 3 Drop 147 | 1 24 6 4 . 41 7 13 17 6 6 . . 2 20 Fire 289 | 6 64 . . . . 37 39 . 8 5 . . 9 121 Melee 50 | . 43 5 . 2 . . . . . . . . . . Ram 1 | 1 . . . . . . . . . . . . . . Kick . | . . . . . . . . . . . . . . . Crush 17 | . . . . . 14 2 . . . 1 . . . . Escape Stasis . | . . . . . . . . . . . . . . . Rewire . | . . . . . . . . . . . . . . . Trap . | . . . . . . . . . . . . . . . Miscellaneous . | . . . . . . . . . . . . . . . Route ------- -11/Scrapyard -10/Materials (discovered 5 exits: [*Mat x2] / *Min x2 / [Sub]) -10/Mines -10/Exiles -9/Mines -8/Materials (discovered 4 exits: *Fac x3 / Gar) -8/Garrison (discovered 3 exits: *Fac x3) -7/Factory -7/Waste -7/Factory -7/Lower Caves -7/Lower Caves -6/Factory -6/DSF -5/Factory History --------- Turn | Location | Event 19 | -11/Scrapyard | Discovered new exit (range 16) 109 | -11/Scrapyard | Entered Materials 109 | -10/Materials | Discovered new exit (range 14) 211 | -10/Materials | Discovered new exit (range 10) 258 | -10/Materials | Repaired Imp. Terrain Scanner 317 | -10/Materials | Build established: Mutant 376 | -10/Materials | Discovered new exit (range 16) 948 | -10/Materials | Discovered new exit (range 3) 1055 | -10/Materials | Core integrity fell below 50% 1090 | -10/Materials | Discovered new exit (range 9) 1119 | -10/Materials | Core integrity fell below 20% 1228 | -10/Materials | Entered Mines 1233 | -10/Mines | Found the Drone Emporium 1245 | -10/Mines | Found Prototype Device 1358 | -10/Mines | A weapon hastily lodged in a ceiling crevice suddenly fell to the ground 1416 | -10/Mines | Assembled infested the area 1420 | -10/Mines | Deemed a non-threat by the Exiles lab entrance 1420 | -10/Mines | Discovered new exit (range 5) 1424 | -10/Mines | Entered Exiles 1451 | -10/Exiles | Met 8R-AWN 1470 | -10/Exiles | Met EX-HEX 1501 | -10/Exiles | Met EX-BIN 1517 | -10/Exiles | Aligned with FarCom system 1518 | -10/Exiles | Given EX-Vault access code 1565 | -10/Exiles | Opened EX-Vault 1578 | -10/Exiles | Found AWS/Autocannon 1629 | -10/Exiles | Warned to stay clear of 0b10 Research branches 1854 | -10/Exiles | Met EX-DEC 1898 | -10/Exiles | Visited The Gauntlet 2214 | -10/Exiles | Learned location of Zion (-7) 2326 | -10/Exiles | Discovered new exit (range 10) 2348 | -10/Exiles | Left Exiles lab with AWS/Autocannon 2348 | -10/Exiles | Entered Mines 2385 | -9/Mines | Met a Derelict bent on vengeance 2526 | -9/Mines | Discovered new exit (range 9) 2550 | -9/Mines | Entered Materials 2550 | -8/Materials | Evolved 4 slots: Propulsion x2, Utility x1, Weapon x1 2558 | -8/Materials | Identified Decoy Drone Bay 2836 | -8/Materials | Lost 7 allies 3190 | -8/Materials | Build established: Skirmisher 3642 | -8/Materials | Discovered new exit (range 16) 4690 | -8/Materials | Discovered new exit (range 11) 5045 | -8/Materials | Repaired Deuterium Engine 5085 | -8/Materials | Repaired Arm. Treads 5321 | -8/Materials | Discovered new exit (range 9) 5374 | -8/Materials | Found Prototype Device 5842 | -8/Materials | Identified exit to Garrison 5842 | -8/Materials | Entered Garrison 5934 | -8/Garrison | Triggered checkpoint 6068 | -8/Garrison | Triggered checkpoint 6078 | -8/Garrison | AWS/Autocannon suddenly broke down 6136 | -8/Garrison | Triggered checkpoint 6256 | -8/Garrison | Discovered new exit (range 8) 6266 | -8/Garrison | Triggered checkpoint 6380 | -8/Garrison | Discovered new exit (range 64) 6380 | -8/Garrison | Discovered new exit (range 21) 6380 | -8/Garrison | Discovered new exit (range 58) 6441 | -8/Garrison | Phase Generator disabled 6614 | -8/Garrison | Triggered checkpoint 6634 | -8/Garrison | Build established: Gunner 6789 | -8/Garrison | Rescued a captive Derelict 6962 | -8/Garrison | Build established: Skirmisher 7014 | -8/Garrison | Installed Relay Interface Framework 7070 | -8/Garrison | Entered Factory 7070 | -7/Factory | Evolved 2 slots: Power x1, Utility x1 7161 | -7/Factory | Repaired Broken Weapon Cycler 7358 | -7/Factory | Build established: Tank 8668 | -7/Factory | Sucked down chute 8668 | -7/Factory | Entered Waste 8669 | -7/Waste | Joined by Warlord forces that had cleared the area 8767 | -7/Waste | Found Damper Plating 8958 | -7/Waste | Discovered new exit (range 16) 8970 | -7/Waste | Found Damper Plating 9225 | -7/Waste | Entered Factory 9225 | -7/Factory | Accompanied by 20 allies 9374 | -7/Factory | Fabricated Arm. Treads (x2) 9455 | -7/Factory | Identified Active Sensor Suite 9477 | -7/Factory | Discovered new exit (range 8) 9532 | -7/Factory | Entered Lower Caves 9532 | -7/Lower Caves | Accompanied by 22 allies 9619 | -7/Lower Caves | Spotted B-75 Beast 9624 | -7/Lower Caves | Allies destroyed B-75 Beast 9754 | -7/Lower Caves | Attracted the attention of an 0b10 base 10050 | -7/Lower Caves | Learned 8 Factory zone layouts 10172 | -7/Lower Caves | Found Prototype Device 10197 | -7/Lower Caves | Discovered new exit (range 14) 10435 | -7/Lower Caves | Entered another Lower Caves area 10435 | -7/Lower Caves | Accompanied by 20 allies 10436 | -7/Lower Caves | Encountered a Warlord checkpoint 10463 | -7/Lower Caves | Discovered new exit (range 9) 10511 | -7/Lower Caves | Entered Factory 10511 | -6/Factory | Accompanied by 19 allies 10511 | -6/Factory | Evolved 2 slots: Utility x2 10588 | -6/Factory | Identified exit to DSF 10616 | -6/Factory | Entered DSF 10616 | -6/DSF | Accompanied by 19 allies 10634 | -6/DSF | Additional patrols routed to DSF 10658 | -6/DSF | Discovered new exit (range 13) 10705 | -6/DSF | Lost 5 allies 10707 | -6/DSF | Identified Heart of Steel 10730 | -6/DSF | Sterilization system engaged 10750 | -6/DSF | Ambient heat levels rising (+10) 10758 | -6/DSF | Entered Factory 10758 | -5/Factory | Accompanied by 13 allies 10758 | -5/Factory | Evolved 2 slots: Utility x1, Weapon x1 11068 | -5/Factory | Repaired Hvy. Treads 11126 | -5/Factory | Repaired Hvy. Treads 11358 | -5/Factory | First assault squad dispatched 11367 | -5/Factory | Fabricated Arm. Treads? 11534 | -5/Factory | Lost 8 allies 11682 | -5/Factory | Repaired Broken Enh. Coil Gun 11830 | -5/Factory | Destroyed 12 combat bots 11872 | -5/Factory | System corruption reached 10% 11907 | -5/Factory | Lost 8 parts (1p2n3u2w) 12485 | -5/Factory | Core integrity fell below 50% 12523 | -5/Factory | Lost 31 parts (4p8n10u9w) 12559 | -5/Factory | Core integrity fell below 20% 12574 | -5/Factory | Destroyed by H-66 Slayer with Gauss Rifle Last Messages --------------- 12528_ Acquired Hvy. Machine Gun. 12531_ Connecting with Terminal... 12531_ ALERT: Suspicious activity at Terminal F020. Dispatching Investigation squad. 12535_ Acquired Field Propulsion Drive. 12539_ Acquired Wave Gun. 12542_ System corrupted: Heat flow error (+298). 12554_ Dropped Faulty Cld. Gravmag System. 12555_ Acquired Imp. Arc Projector. 12558_ Nuclear Reactor explodes. 12558_ Field Propulsion Drive destroyed. 12561_ Dropped Wave Gun. 12565_ R-10 Processor collects Wave Gun. 12566_ System corrupted: Matter fused (-5). 12567_ U-05 Engineer builds a Wall. 12568_ Nuclear Reactor explodes. 12568_ The unstable cave ceiling collapses. 12568_ P-70 Sage destroyed. 12569_ Slug penetrates Earth. 12569_ Slug penetrates Wall. Map ----- +----------------------------------------------------+ | ???????????????????????????????????? ???????????? | | ??????????????????????????????????? ??????????? | | ???????????###############/######## ??????????? | | ???????????# # ?????????? | | ???????????# ?????????? | | ???????????# ?????????? | | ???????????# """ ????????? | | ???????????# """ "Y " ????????? | | ???????????# """ % """ " ???????? | | ???????????# """ ???????? | | ???????????# #??????? | | ???????????# """ h # #??????? | | ???????????# """ #??????? | | ???????????# """ ########### #?????????? | | ???????????# #?????????????????????? | | ???????????##### # #?????????????????????? | | ???????????????# # # #?????????????????????? | | ???????????????## # # #?????????????????????? | | ????????????????##### #### #?????????????????????? | | ????????????????????# #??# #?????????????????????? | | ????????????????????# #??# #?????????????????????? | | ???????????##########+#### ###???????????????????? | | ???????????# # #???????????????????? | | ???????????# # T" !#########???????????? | | ???????????# + "" ????????????? | | ???????????# # @ ######??????????????? | | ???????????# # h #???????????????????? | | ???????????# ### ###???????????????????? | | ???????????# #?# #?????????????????????? | | ???????????#############?# #?????????????????????? | | ??????????????############+#?????????????????????? | | ??????????????# #?????????????????????? | | ??????????????# #?????????????????????? | | ??????????????# #?????????????????????? | | ??????????????# #?????????????????????? | | ??????????????# #?????????????????????? | | ??????????????# #?????????????????????? | | ??????????????# "" "" #?????????????????????? | | ??????????????# "" "" #?????????????????????? | | ??????????????# """ """ #?????????????????????? | | ??????????????# """ """ #?????????????????????? | | ??????????????# """ """ #?????????????????????? | | ??????????????# #?????????????????????? | | #####################+#########??????????????????? | | ?????????????? | | #####????????????????????? | | #????????????????????????? | | #????????????????????????? | | #????????????????????????? | | ##########+###########????????????????????????? | +----------------------------------------------------+ Best States ------------- Heat Dissipation 78 Energy Generation 34 Energy Capacity 515 Matter Stores 300 Matter Capacity 300 Sight Range 16 Terrain Scan Range 16 Terrain Scan Density 10 Armor Coverage 1825 Resistance: KI 30 Resistance: EM 90 Weapon Cycling 15 Evasion (%) 60 Targeting Accuracy 8 Recoil Reduction 9 Defensive Hacking 10 Item Schematics ----------------- Imp. Targeting Computer | -8/Materials | Scanalyzed Arm. Treads | -8/Materials | Hacked Enh. Autogun | -8/Materials | Scanalyzed Hvy. Particle Gun | -8/Materials | Scanalyzed Ripper | -8/Materials | Scanalyzed Hvy. EM Pulse Gun | -8/Materials | Scanalyzed Weapon Cycler | -7/Factory | Scanalyzed Slug Cannon | -7/Factory | Scanalyzed Antimatter Reactor | -7/Factory | Scanalyzed Imp. Medium Armor Plating | -7/Factory | Scanalyzed Robot Schematics ------------------ None Fabricated ------------ Arm. Treads | x2 | -7/Factory Arm. Treads | x2 | -5/Factory Alien Tech Used ----------------- None Achievements -------------- Release The Drones! We Are Legion Challenges ------------ None Game ------ Seed AntimatterScrapSlayer Manual? 0 Play Time 02:02:31 Cumulative 50.2 hours Start 2024.08.27 @ 03:58:51 End 2024.08.27 @ 06:00:45 Sessions 1 Manual Loads 0 Difficulty Rogue Special Mode None Game No. 35 Rogue 35 Adventurer 0 Explorer 0 Win Type - Total 0 Types 0/0/0/0/0/0/0/0/0 Lore% 22 Gallery% 38 Achievement% 35 Wizard Run 0 Options --------- Layout 2 ASCII 0 Keyboard 1 Movement Numpad Keybinds 0 Fullscreen 1 Font 24/Smallcaps Map View 50x44 Zoom Use 0% Tactical HUD 1 Map Filters NONE Filters NONE Steam 1 RUN: be15a2d8-9e79-42e1-adfb-842c376bbff3